[Event "MCR rapid mládeže 2023 U16"]
[Site "Harachov, Czech Republic"]
[Date "2023.09.10"]
[Round "7.40"]
[White "Najdkova, Laura"]
[Black "Vanickova, Natalie"]
[Result "1-0"]
[TimeControl "20min+5s/move"]
[WhiteElo "1331"]
[BlackElo "1162"]

1. e4 {[%clk 00:20:09]} e6 {[%clk 00:19:50]} {[%emt 00:00:20]} 2. Nc3 {[%clk
00:20:07]} {[%emt 00:00:06]} d5 {[%clk 00:19:48]} {[%emt 00:00:08]} 3. exd5
{[%clk 00:20:10]} {[%emt 00:00:02]} exd5 {[%clk 00:19:46]} {[%emt 00:00:06]} 4.
d4 {[%clk 00:20:12]} {[%emt 00:00:04]} Nf6 {[%clk 00:19:45]} {[%emt 00:00:06]}
5. Bg5 {[%clk 00:20:09]} {[%emt 00:00:08]} Be7 {[%clk 00:19:36]} {[%emt
00:00:14]} 6. Bd3 {[%clk 00:19:50]} {[%emt 00:00:24]} Nbd7 {[%clk 00:18:10]}
{[%emt 00:01:30]} 7. Nf3 {[%clk 00:19:10]} {[%emt 00:00:45]} c5 {[%clk
00:18:12]} {[%emt 00:00:04]} 8. Bxf6 {[%clk 00:16:12]} {[%emt 00:03:03]} Bxf6
{[%clk 00:17:43]} {[%emt 00:00:33]} 9. Qe2+ {[%clk 00:15:51]} {[%emt 00:00:27]}
Be7 {[%clk 00:17:01]} {[%emt 00:00:46]} 10. Nxd5 {[%clk 00:14:41]} {[%emt
00:01:16]} b6 {[%clk 00:14:54]} {[%emt 00:02:10]} 11. Bb5 {[%clk 00:12:01]}
{[%emt 00:02:47]} a6 {[%clk 00:09:59]} {[%emt 00:05:00]} 12. Bc6 {[%clk
00:10:07]} {[%emt 00:01:59]} Rb8 {[%clk 00:09:12]} {[%emt 00:00:51]} 13. Qe5
{[%emt 00:02:33]} Bb7 {[%clk 00:07:54]} {[%emt 00:01:21]} 14. Bxd7+ {[%clk
00:07:31]} {[%emt 00:00:16]} Qxd7 {[%clk 00:07:40]} {[%emt 00:00:18]} 15. Qxb8+
{[%clk 00:07:31]} {[%emt 00:00:06]} Qc8 {[%clk 00:07:32]} {[%emt 00:00:11]} 16.
Qxc8+ {[%clk 00:07:23]} {[%emt 00:00:15]} Bxc8 {[%clk 00:07:33]} {[%emt
00:00:04]} 17. Nxe7 {[%clk 00:07:26]} {[%emt 00:00:02]} Kxe7 {[%clk 00:07:34]}
{[%emt 00:00:04]} 18. dxc5 {[%clk 00:07:27]} {[%emt 00:00:05]} bxc5 {[%clk
00:07:36]} {[%emt 00:00:02]} 19. O-O-O {[%clk 00:07:20]} {[%emt 00:00:12]} Re8
{[%clk 00:07:22]} {[%emt 00:00:17]} 20. Rhe1+ {[%clk 00:07:17]} {[%emt
00:00:09]} Be6 {[%clk 00:07:23]} {[%emt 00:00:04]} 21. Ng5 {[%clk 00:07:16]}
{[%emt 00:00:06]} Kf8 {[%clk 00:07:23]} {[%emt 00:00:06]} 22. Nxe6+ {[%clk
00:07:16]} {[%emt 00:00:06]} fxe6 {[%clk 00:07:23]} {[%emt 00:00:03]} 23. Rd6
{[%clk 00:07:14]} {[%emt 00:00:07]} Kf7 {[%clk 00:07:16]} {[%emt 00:00:12]} 24.
Rxa6 {[%clk 00:07:16]} {[%emt 00:00:04]} Kf6 {[%clk 00:07:14]} {[%emt
00:00:07]} 25. Rc6 {[%clk 00:07:16]} {[%emt 00:00:06]} c4 {[%clk 00:07:13]}
{[%emt 00:00:06]} 26. Rxc4 {[%clk 00:07:18]} {[%emt 00:00:03]} h6 {[%clk
00:07:13]} {[%emt 00:00:04]} 27. b3 {[%clk 00:07:16]} {[%emt 00:00:08]} g5
{[%clk 00:07:10]} {[%emt 00:00:07]} 28. f4 {[%clk 00:07:12]} {[%emt 00:00:08]}
gxf4 {[%clk 00:06:45]} {[%emt 00:00:31]} 29. Rxf4+ {[%clk 00:07:15]} {[%emt
00:00:03]} Kg5 {[%clk 00:06:47]} {[%emt 00:00:01]} 30. Rfe4 {[%clk 00:07:14]}
{[%emt 00:00:07]} Kf6 {[%clk 00:06:49]} {[%emt 00:00:03]} 31. Rf1+ {[%clk
00:07:16]} {[%emt 00:00:03]} Ke7 {[%clk 00:06:51]} {[%emt 00:00:04]} 32. Rh4
{[%clk 00:07:00]} {[%emt 00:00:19]} Kd6 {[%clk 00:06:52]} {[%emt 00:00:04]} 33.
Rxh6 {[%clk 00:07:02]} {[%emt 00:00:04]} Kc6 {[%clk 00:06:46]} {[%emt
00:00:08]} 34. Re1 {[%clk 00:07:05]} {[%emt 00:00:04]} Kd6 {[%clk 00:06:45]}
{[%emt 00:00:06]} 35. Kd2 {[%clk 00:06:53]} {[%emt 00:00:18]} Kd5 {[%clk
00:06:42]} {[%emt 00:00:08]} 36. c4+ {[%clk 00:06:52]} {[%emt 00:00:07]} Kd6
{[%clk 00:06:44]} {[%emt 00:00:02]} 37. Kc3 {[%clk 00:06:52]} {[%emt 00:00:05]}
Kd7 {[%clk 00:06:42]} {[%emt 00:00:08]} 38. a4 {[%clk 00:06:52]} {[%emt
00:00:04]} Kd6 {[%clk 00:06:44]} {[%emt 00:00:02]} 39. Kd4 {[%clk 00:06:47]}
{[%emt 00:00:10]} Kd7 {[%clk 00:06:45]} {[%emt 00:00:05]} 40. Kc5 {[%clk
00:06:48]} {[%emt 00:00:04]} e5 {[%clk 00:06:46]} {[%emt 00:00:03]} 41. Kd5
{[%clk 00:06:46]} {[%emt 00:00:08]} e4 {[%clk 00:06:47]} {[%emt 00:00:04]} 42.
Rxe4 {[%clk 00:06:45]} {[%emt 00:00:07]} Rxe4 {[%clk 00:06:43]} {[%emt
00:00:08]} 43. Kxe4 {[%clk 00:06:49]} {[%emt 00:00:01]} Kc7 {[%clk 00:06:43]}
{[%emt 00:00:05]} 44. Kd5 {[%clk 00:06:53]} {[%emt 00:00:02]} Kb7 {[%clk
00:06:46]} {[%emt 00:00:02]} 45. Kc5 {[%clk 00:06:56]} {[%emt 00:00:01]} Ka7
{[%clk 00:06:50]} {[%emt 00:00:01]} 46. Kb5 {[%clk 00:07:00]} Kb7 {[%clk
00:06:53]} {[%emt 00:00:02]} 47. Rh7+ {[%clk 00:07:04]} {[%emt 00:00:01]} Kc8
{[%emt 00:00:05]} 48. Kb6 {[%clk 00:07:03]} {[%emt 00:00:03]} Kb8 {[%clk
00:07:00]} {[%emt 00:00:03]} 49. Rh8# {[%clk 00:07:03]} {[%emt 00:00:02]} 1-0

[Event "MCR rapid mládeže 2023 U16"]
[Site "Harachov, Czech Republic"]
[Date "2023.09.10"]
[Round "7.41"]
[White "Sengrova, Zofie"]
[Black "Zidkova, Agnes"]
[Result "0-1"]
[TimeControl "20min+5s/move"]
[WhiteElo "1124"]
[BlackElo "1045"]

1. e4 {[%clk 00:20:09]} e6 {[%clk 00:20:09]} {[%emt 00:00:02]} 2. Nf3 {[%clk
00:20:06]} {[%emt 00:00:07]} d5 {[%clk 00:20:12]} {[%emt 00:00:02]} 3. exd5
{[%clk 00:20:08]} {[%emt 00:00:02]} exd5 {[%clk 00:20:16]} {[%emt 00:00:03]} 4.
Nc3 {[%clk 00:20:09]} {[%emt 00:00:03]} Nf6 {[%clk 00:20:18]} {[%emt 00:00:04]}
5. d4 {[%clk 00:20:04]} {[%emt 00:00:09]} Be7 {[%clk 00:19:35]} {[%emt
00:00:49]} 6. Bb5+ {[%clk 00:20:04]} {[%emt 00:00:04]} c6 {[%clk 00:19:27]}
{[%emt 00:00:13]} 7. Bd3 {[%clk 00:20:03]} {[%emt 00:00:06]} O-O {[%clk
00:19:11]} {[%emt 00:00:21]} 8. O-O {[%clk 00:20:04]} {[%emt 00:00:04]} Bg4
{[%clk 00:18:58]} {[%emt 00:00:18]} 9. Bg5 {[%clk 00:19:43]} {[%emt 00:00:26]}
Re8 {[%clk 00:18:26]} {[%emt 00:00:36]} 10. h3 {[%clk 00:19:44]} {[%emt
00:00:04]} Bh5 {[%clk 00:18:19]} {[%emt 00:00:13]} 11. Bxf6 {[%clk 00:19:20]}
{[%emt 00:00:29]} Bxf6 {[%clk 00:18:11]} {[%emt 00:00:13]} 12. Be2 {[%clk
00:19:09]} {[%emt 00:00:15]} Nd7 {[%clk 00:16:39]} {[%emt 00:01:38]} 13. Ne1
{[%clk 00:17:19]} {[%emt 00:01:54]} Bxe2 {[%clk 00:16:27]} {[%emt 00:00:18]} 14.
Nxe2 {[%clk 00:17:16]} {[%emt 00:00:07]} Qe7 {[%clk 00:16:13]} {[%emt
00:00:20]} 15. Nf4 {[%clk 00:16:57]} {[%emt 00:00:24]} Qe4 {[%clk 00:15:39]}
{[%emt 00:00:39]} 16. Qd2 {[%clk 00:16:30]} {[%emt 00:00:28]} Qxd4 {[%clk
00:15:19]} {[%emt 00:00:29]} 17. Qxd4 {[%clk 00:16:19]} {[%emt 00:00:15]} Bxd4
{[%clk 00:15:21]} {[%emt 00:00:04]} 18. Nf3 {[%clk 00:16:06]} {[%emt 00:00:17]}
Bxb2 {[%clk 00:14:53]} {[%emt 00:00:33]} 19. Rab1 {[%clk 00:16:05]} {[%emt
00:00:07]} Be5 {[%clk 00:14:28]} {[%emt 00:00:31]} 20. Nxe5 {[%clk 00:15:44]}
{[%emt 00:00:26]} Rxe5 {[%clk 00:14:01]} {[%emt 00:00:31]} 21. Rfe1 {[%clk
00:15:40]} {[%emt 00:00:06]} Rae8 {[%clk 00:13:44]} {[%emt 00:00:25]} 22. Rxe5
{[%clk 00:15:21]} {[%emt 00:00:24]} Nxe5 {[%clk 00:13:33]} {[%emt 00:00:16]} 23.
Re1 {[%clk 00:14:59]} {[%emt 00:00:27]} f6 {[%clk 00:13:14]} {[%emt 00:00:24]}
24. Nd3 {[%clk 00:14:50]} {[%emt 00:00:11]} Kf7 {[%clk 00:12:55]} {[%emt
00:00:27]} 25. f4 {[%clk 00:14:46]} {[%emt 00:00:09]} Nxd3 {[%clk 00:12:56]}
{[%emt 00:00:04]} 26. Rxe8 {[%clk 00:14:46]} {[%emt 00:00:04]} Kxe8 {[%clk
00:12:57]} {[%emt 00:00:05]} 27. cxd3 {[%clk 00:14:49]} {[%emt 00:00:01]} Ke7
{[%clk 00:12:55]} {[%emt 00:00:07]} 28. g4 {[%clk 00:14:49]} {[%emt 00:00:06]}
Kd6 {[%clk 00:12:50]} {[%emt 00:00:09]} 29. g5 {[%clk 00:14:53]} {[%emt
00:00:02]} f5 {[%clk 00:12:20]} {[%emt 00:00:35]} 30. h4 {[%clk 00:14:45]}
{[%emt 00:00:09]} c5 {[%clk 00:12:23]} {[%emt 00:00:06]} 31. h5 {[%clk
00:14:38]} {[%emt 00:00:11]} c4 {[%clk 00:12:24]} {[%emt 00:00:05]} 32. dxc4
{[%clk 00:14:29]} {[%emt 00:00:13]} dxc4 {[%clk 00:12:28]} {[%emt 00:00:02]} 33.
Kf1 {[%clk 00:14:31]} {[%emt 00:00:03]} Kd5 {[%clk 00:12:32]} {[%emt 00:00:02]}
34. Ke2 {[%clk 00:14:34]} {[%emt 00:00:01]} Kd4 {[%clk 00:12:35]} {[%emt
00:00:02]} 35. Kd2 {[%clk 00:14:37]} {[%emt 00:00:02]} b5 {[%clk 00:12:34]}
{[%emt 00:00:06]} 36. a3 {[%clk 00:14:37]} {[%emt 00:00:05]} a5 {[%clk
00:12:35]} {[%emt 00:00:04]} 37. g6 {[%clk 00:14:39]} {[%emt 00:00:03]} hxg6
{[%clk 00:12:07]} {[%emt 00:00:32]} 38. hxg6 {[%clk 00:14:41]} {[%emt
00:00:04]} c3+ {[%clk 00:12:10]} {[%emt 00:00:02]} 39. Kc2 {[%clk 00:14:43]}
{[%emt 00:00:02]} b4 {[%clk 00:11:23]} {[%emt 00:00:53]} 40. axb4 {[%clk
00:14:44]} {[%emt 00:00:03]} axb4 {[%clk 00:11:27]} {[%emt 00:00:02]} 41. Kb3
{[%clk 00:14:46]} {[%emt 00:00:02]} Kd3 {[%clk 00:11:29]} {[%emt 00:00:04]} 42.
Kxb4 {[%clk 00:13:53]} {[%emt 00:00:57]} c2 {[%clk 00:11:33]} {[%emt 00:00:02]}
43. Kc5 {[%clk 00:13:56]} {[%emt 00:00:02]} c1=Q+ {[%clk 00:11:35]} {[%emt
00:00:04]} 44. Kd5 {[%clk 00:13:57]} {[%emt 00:00:03]} Qc4+ {[%clk 00:11:36]}
{[%emt 00:00:04]} 45. Ke5 {[%clk 00:13:59]} {[%emt 00:00:02]} Qe4+ {[%clk
00:11:36]} {[%emt 00:00:05]} 46. Kd6 {[%clk 00:13:55]} {[%emt 00:00:08]} Qxf4+
{[%clk 00:11:39]} {[%emt 00:00:05]} 47. Ke6 {[%clk 00:13:57]} {[%emt 00:00:02]}
Qh6 {[%clk 00:11:20]} {[%emt 00:00:24]} 48. Kxf5 {[%clk 00:13:56]} {[%emt
00:00:04]} Kd4 {[%clk 00:11:16]} {[%emt 00:00:10]} 49. Ke6 {[%clk 00:13:57]}
{[%emt 00:00:05]} Qxg6+ {[%clk 00:11:18]} {[%emt 00:00:03]} 50. Ke7 {[%clk
00:13:49]} {[%emt 00:00:11]} Ke5 {[%clk 00:11:20]} {[%emt 00:00:05]} 51. Kd7
{[%clk 00:13:46]} {[%emt 00:00:08]} Qd6+ {[%clk 00:11:23]} {[%emt 00:00:02]} 52.
Kc8 {[%clk 00:13:46]} {[%emt 00:00:05]} Qe7 {[%clk 00:11:24]} {[%emt 00:00:04]}
53. Kb8 {[%clk 00:13:48]} {[%emt 00:00:04]} Kd6 {[%clk 00:11:27]} {[%emt
00:00:01]} 54. Kc8 {[%clk 00:13:49]} {[%emt 00:00:03]} Qc7# {[%emt 00:00:03]}
0-1

[Event "MCR rapid mládeže 2023 U16"]
[Site "Harachov, Czech Republic"]
[Date "2023.09.10"]
[Round "8.1"]
[White "Juhanak, Daniel"]
[Black "Novotny, Dominik"]
[Result "1/2-1/2"]
[TimeControl "20min+5s/move"]
[WhiteElo "1878"]
[BlackElo "1707"]

1. c4 {[%clk 00:20:09]} Nf6 {[%clk 00:20:07]} {[%emt 00:00:04]} 2. Nc3 {[%clk
00:20:06]} {[%emt 00:00:08]} c5 {[%clk 00:19:54]} {[%emt 00:00:18]} 3. Nf3
{[%clk 00:20:09]} {[%emt 00:00:02]} Nc6 {[%clk 00:19:43]} {[%emt 00:00:15]} 4.
e3 {[%clk 00:20:13]} {[%emt 00:00:01]} e6 {[%clk 00:19:13]} {[%emt 00:00:35]} 5.
d4 {[%clk 00:17:07]} {[%emt 00:03:10]} d5 {[%clk 00:18:44]} {[%emt 00:00:34]} 6.
a3 {[%clk 00:17:04]} {[%emt 00:00:08]} dxc4 {[%clk 00:17:40]} {[%emt 00:01:09]}
7. Bxc4 {[%clk 00:17:00]} {[%emt 00:00:09]} b6 {[%clk 00:15:57]} {[%emt
00:01:48]} 8. O-O {[%clk 00:16:01]} {[%emt 00:01:04]} Bb7 {[%clk 00:15:30]}
{[%emt 00:00:32]} 9. dxc5 {[%clk 00:13:37]} {[%emt 00:02:30]} Qxd1 {[%clk
00:15:14]} {[%emt 00:00:21]} 10. Rxd1 {[%clk 00:13:37]} {[%emt 00:00:04]} Bxc5
{[%clk 00:15:13]} {[%emt 00:00:05]} 11. b4 {[%clk 00:13:32]} {[%emt 00:00:10]}
Be7 {[%clk 00:15:16]} {[%emt 00:00:02]} 12. Bb2 {[%clk 00:12:52]} {[%emt
00:00:46]} O-O {[%clk 00:14:56]} {[%emt 00:00:25]} 13. Rac1 {[%clk 00:11:27]}
{[%emt 00:01:30]} Rfd8 {[%clk 00:14:25]} {[%emt 00:00:35]} 14. Kf1 {[%clk
00:10:41]} {[%emt 00:00:51]} Kf8 {[%clk 00:13:36]} {[%emt 00:00:54]} 15. Ke2
{[%clk 00:10:13]} {[%emt 00:00:33]} Rxd1 {[%clk 00:10:37]} {[%emt 00:03:04]} 16.
Rxd1 {[%clk 00:10:08]} {[%emt 00:00:09]} Rd8 {[%clk 00:10:32]} {[%emt
00:00:10]} 17. Rc1 {[%clk 00:10:05]} {[%emt 00:00:09]} Ke8 {[%clk 00:10:04]}
{[%emt 00:00:32]} 18. h3 {[%clk 00:09:29]} {[%emt 00:00:41]} h6 {[%clk
00:09:18]} {[%emt 00:00:51]} 19. Ke1 {[%clk 00:07:57]} {[%emt 00:01:38]} Kf8
{[%clk 00:09:10]} {[%emt 00:00:13]} 20. Be2 {[%clk 00:07:46]} {[%emt 00:00:16]}
Ke8 {[%clk 00:08:19]} {[%emt 00:00:56]} 21. g4 {[%clk 00:06:52]} {[%emt
00:01:00]} g5 {[%clk 00:07:15]} {[%emt 00:01:08]} 22. Nb5 {[%clk 00:06:04]}
{[%emt 00:00:53]} Nd5 {[%clk 00:05:50]} {[%emt 00:01:29]} 23. Ne5 {[%clk
00:05:31]} {[%emt 00:00:38]} Nxe5 {[%clk 00:01:42]} {[%emt 00:04:13]} 24. Bxe5
{[%clk 00:05:35]} {[%emt 00:00:01]} a6 {[%clk 00:01:46]} {[%emt 00:00:01]} 25.
Nd4 {[%clk 00:03:58]} {[%emt 00:01:42]} Rc8 {[%clk 00:00:54]} {[%emt 00:00:57]}
26. Rxc8+ {[%clk 00:03:04]} {[%emt 00:00:59]} Bxc8 {[%clk 00:00:58]} {[%emt
00:00:01]} 27. Bf3 {[%clk 00:01:44]} {[%emt 00:01:24]} Bb7 {[%clk 00:00:39]}
{[%emt 00:00:24]} 28. Kd2 {[%clk 00:01:22]} {[%emt 00:00:27]} f6 {[%clk
00:00:15]} {[%emt 00:00:30]} 29. Bg3 {[%clk 00:00:44]} {[%emt 00:00:43]} Kd7
{[%clk 00:00:19]} 30. Be4 {[%clk 00:00:31]} {[%emt 00:00:17]} Bd6 {[%clk
00:00:17]} {[%emt 00:00:07]} 31. Bxd6 {[%clk 00:00:13]} {[%emt 00:00:23]} Kxd6
{[%clk 00:00:20]} {[%emt 00:00:01]} 32. Bf3 {[%clk 00:00:11]} {[%emt 00:00:07]}
b5 {[%clk 00:00:11]} {[%emt 00:00:14]} 33. Bg2 {[%clk 00:00:13]} {[%emt
00:00:03]} Ba8 {[%clk 00:00:14]} {[%emt 00:00:02]} 34. Nb3 {[%clk 00:00:15]}
{[%emt 00:00:04]} Nb6 {[%clk 00:00:14]} {[%emt 00:00:06]} 35. Bxa8 {[%clk
00:00:15]} {[%emt 00:00:05]} Nxa8 {[%emt 00:00:02]} 36. Nc5 {[%clk 00:00:12]}
{[%emt 00:00:06]} Nc7 {[%clk 00:00:22]} 37. Kc3 {[%clk 00:00:10]} {[%emt
00:00:08]} a5 {[%clk 00:00:22]} {[%emt 00:00:04]} 38. Nb7+ {[%clk 00:00:10]}
{[%emt 00:00:05]} Kd5 {[%clk 00:00:23]} {[%emt 00:00:04]} 39. Nxa5 {[%clk
00:00:10]} {[%emt 00:00:05]} Ke4 {[%clk 00:00:27]} 40. Kd2 {[%clk 00:00:09]}
{[%emt 00:00:07]} Kf3 {[%clk 00:00:30]} {[%emt 00:00:01]} 41. Ke1 {[%clk
00:00:12]} {[%emt 00:00:01]} Kg2 {[%clk 00:00:34]} {[%emt 00:00:01]} 42. Nc6
{[%clk 00:00:14]} {[%emt 00:00:03]} Kxh3 {[%clk 00:00:37]} {[%emt 00:00:02]} 43.
f3 {[%clk 00:00:19]} f5 {[%clk 00:00:33]} {[%emt 00:00:10]} 44. Ne5 {[%clk
00:00:23]} fxg4 {[%clk 00:00:35]} {[%emt 00:00:03]} 45. fxg4 {[%clk 00:00:26]}
{[%emt 00:00:02]} Nd5 {[%clk 00:00:35]} {[%emt 00:00:04]} 46. Ke2 {[%clk
00:00:28]} {[%emt 00:00:03]} Nf6 {[%clk 00:00:38]} {[%emt 00:00:01]} 47. Kf3
{[%clk 00:00:32]} {[%emt 00:00:02]} h5 {[%clk 00:00:42]} {[%emt 00:00:02]} 48.
gxh5 {[%clk 00:00:34]} {[%emt 00:00:03]} Nxh5 {[%clk 00:00:45]} {[%emt
00:00:01]} 49. Ng4 {[%clk 00:00:33]} {[%emt 00:00:05]} Ng7 {[%clk 00:00:32]}
{[%emt 00:00:19]} 50. e4 {[%clk 00:00:21]} {[%emt 00:00:16]} 1/2-1/2

[Event "MCR rapid mládeže 2023 U16"]
[Site "Harachov, Czech Republic"]
[Date "2023.09.10"]
[Round "8.2"]
[White "Popov, Roman"]
[Black "Roubal, Matyas"]
[Result "1/2-1/2"]
[TimeControl "20min+5s/move"]
[WhiteElo "1751"]
[BlackElo "1911"]

1. d4 {[%clk 00:20:07]} {[%emt 00:00:03]} d5 {[%clk 00:20:07]} {[%emt
00:00:04]} 2. c4 {[%clk 00:20:09]} {[%emt 00:00:02]} e6 {[%clk 00:20:11]}
{[%emt 00:00:02]} 3. Nc3 {[%clk 00:20:09]} {[%emt 00:00:04]} c5 {[%clk
00:20:13]} {[%emt 00:00:04]} 4. cxd5 {[%clk 00:19:59]} {[%emt 00:00:14]} exd5
{[%clk 00:20:16]} {[%emt 00:00:02]} 5. Nf3 {[%clk 00:19:56]} {[%emt 00:00:08]}
Nc6 {[%clk 00:20:16]} {[%emt 00:00:05]} 6. e3 {[%clk 00:18:20]} {[%emt
00:01:42]} Nf6 {[%clk 00:20:14]} {[%emt 00:00:06]} 7. Be2 {[%clk 00:18:15]}
{[%emt 00:00:10]} cxd4 {[%clk 00:20:09]} {[%emt 00:00:11]} 8. Nxd4 {[%clk
00:18:03]} {[%emt 00:00:16]} Bc5 {[%clk 00:19:12]} {[%emt 00:01:03]} 9. O-O
{[%clk 00:17:33]} {[%emt 00:00:34]} O-O {[%clk 00:18:54]} {[%emt 00:00:23]} 10.
Bf3 {[%clk 00:16:56]} {[%emt 00:00:41]} Ne5 {[%clk 00:18:05]} {[%emt 00:00:55]}
11. a3 {[%clk 00:16:04]} {[%emt 00:00:57]} Nxf3+ {[%clk 00:18:01]} {[%emt
00:00:08]} 12. Nxf3 {[%clk 00:15:50]} {[%emt 00:00:20]} a6 {[%clk 00:17:29]}
{[%emt 00:00:37]} 13. b4 {[%clk 00:15:33]} {[%emt 00:00:22]} Ba7 {[%clk
00:17:19]} {[%emt 00:00:15]} 14. Bb2 {[%clk 00:15:32]} {[%emt 00:00:06]} Be6
{[%clk 00:16:53]} {[%emt 00:00:30]} 15. Nd4 {[%clk 00:15:12]} {[%emt 00:00:25]}
Qd7 {[%clk 00:16:37]} {[%emt 00:00:21]} 16. Qd2 {[%clk 00:14:34]} {[%emt
00:00:43]} Ne4 {[%clk 00:16:03]} {[%emt 00:00:39]} 17. Qd3 {[%clk 00:12:52]}
{[%emt 00:01:45]} Nxc3 {[%clk 00:15:50]} {[%emt 00:00:20]} 18. Bxc3 {[%clk
00:12:50]} {[%emt 00:00:07]} Bxd4 {[%clk 00:14:29]} {[%emt 00:01:27]} 19. Qxd4
{[%clk 00:12:45]} {[%emt 00:00:09]} f6 {[%clk 00:14:33]} {[%emt 00:00:02]} 20.
Rfd1 {[%clk 00:12:33]} {[%emt 00:00:17]} Qc6 {[%clk 00:14:30]} {[%emt
00:00:08]} 21. Rac1 {[%clk 00:12:23]} {[%emt 00:00:13]} Qc4 {[%clk 00:14:26]}
{[%emt 00:00:11]} 22. Bb2 {[%clk 00:12:07]} {[%emt 00:00:21]} Qxd4 {[%clk
00:14:28]} {[%emt 00:00:03]} 23. Rxd4 {[%clk 00:11:58]} {[%emt 00:00:13]} Rac8
{[%clk 00:14:28]} {[%emt 00:00:05]} 24. Rxc8 {[%clk 00:11:04]} {[%emt
00:00:58]} Rxc8 {[%clk 00:14:31]} {[%emt 00:00:02]} 25. Rd2 {[%clk 00:11:00]}
{[%emt 00:00:09]} Kf7 {[%clk 00:14:24]} {[%emt 00:00:13]} 26. Kf1 {[%clk
00:10:56]} {[%emt 00:00:06]} Ke7 {[%clk 00:14:26]} {[%emt 00:00:06]} 27. Ke1
{[%clk 00:10:57]} {[%emt 00:00:04]} Rc4 {[%clk 00:14:14]} {[%emt 00:00:17]} 28.
Kd1 {[%clk 00:10:33]} {[%emt 00:00:28]} Kd6 {[%clk 00:13:59]} {[%emt 00:00:20]}
29. Rd4 {[%clk 00:09:59]} {[%emt 00:00:40]} b5 {[%clk 00:14:00]} {[%emt
00:00:04]} 30. Rxc4 {[%clk 00:09:51]} {[%emt 00:00:13]} dxc4 {[%clk 00:14:03]}
{[%emt 00:00:02]} 31. Kd2 {[%clk 00:09:51]} {[%emt 00:00:04]} Kd5 {[%clk
00:14:01]} {[%emt 00:00:08]} 32. Bc3 {[%clk 00:09:41]} {[%emt 00:00:14]} Ke4
{[%clk 00:13:55]} {[%emt 00:00:11]} 33. f3+ {[%clk 00:09:34]} {[%emt 00:00:13]}
Kd5 {[%clk 00:13:56]} {[%emt 00:00:04]} 34. e4+ {[%clk 00:09:28]} {[%emt
00:00:11]} Kd6 {[%clk 00:13:58]} {[%emt 00:00:02]} 35. Ke3 {[%clk 00:09:27]}
{[%emt 00:00:05]} Bd7 {[%clk 00:13:59]} {[%emt 00:00:04]} 1/2-1/2

[Event "MCR rapid mládeže 2023 U16"]
[Site "Harachov, Czech Republic"]
[Date "2023.09.10"]
[Round "8.3"]
[White "Setina, Vaclav"]
[Black "Andrle, Filip"]
[Result "1/2-1/2"]
[TimeControl "20min+5s/move"]
[WhiteElo "1876"]
[BlackElo "1649"]

1. e4 {[%clk 00:20:05]} {[%emt 00:00:05]} c5 {[%clk 00:20:09]} {[%emt
00:00:02]} 2. Nf3 {[%clk 00:20:09]} {[%emt 00:00:01]} Nc6 {[%clk 00:20:12]}
{[%emt 00:00:02]} 3. c3 {[%clk 00:20:13]} {[%emt 00:00:01]} d5 {[%clk
00:20:12]} {[%emt 00:00:05]} 4. exd5 {[%clk 00:20:16]} {[%emt 00:00:01]} Qxd5
{[%clk 00:20:14]} {[%emt 00:00:03]} 5. d4 {[%clk 00:20:20]} Bg4 {[%clk
00:20:02]} {[%emt 00:00:17]} 6. Be2 {[%clk 00:20:24]} {[%emt 00:00:01]} cxd4
{[%clk 00:19:47]} {[%emt 00:00:20]} 7. cxd4 {[%clk 00:20:28]} {[%emt 00:00:02]}
e6 {[%clk 00:19:38]} {[%emt 00:00:14]} 8. h3 {[%clk 00:20:21]} {[%emt
00:00:12]} Bh5 {[%clk 00:19:00]} {[%emt 00:00:44]} 9. O-O {[%clk 00:20:20]}
{[%emt 00:00:06]} Nf6 {[%clk 00:18:37]} {[%emt 00:00:28]} 10. Nc3 {[%clk
00:20:18]} {[%emt 00:00:08]} Qa5 {[%clk 00:17:30]} {[%emt 00:01:12]} 11. Be3
{[%clk 00:20:10]} {[%emt 00:00:13]} Be7 {[%clk 00:17:06]} {[%emt 00:00:28]} 12.
a3 {[%clk 00:20:01]} {[%emt 00:00:15]} O-O {[%clk 00:15:46]} {[%emt 00:01:24]}
13. Qb3 {[%clk 00:20:03]} {[%emt 00:00:03]} Qb6 {[%clk 00:14:35]} {[%emt
00:01:17]} 14. Qxb6 {[%clk 00:16:47]} {[%emt 00:03:20]} axb6 {[%clk 00:14:38]}
{[%emt 00:00:02]} 15. d5 {[%clk 00:16:43]} {[%emt 00:00:10]} Nxd5 {[%clk
00:14:06]} {[%emt 00:00:37]} 16. Nxd5 {[%clk 00:16:46]} {[%emt 00:00:02]} exd5
{[%clk 00:14:09]} {[%emt 00:00:01]} 17. Rad1 {[%clk 00:15:03]} {[%emt
00:01:48]} Bf6 {[%clk 00:10:54]} {[%emt 00:03:21]} 18. Rxd5 {[%clk 00:14:30]}
{[%emt 00:00:38]} Bxf3 {[%clk 00:10:52]} {[%emt 00:00:06]} 19. Bxf3 {[%clk
00:14:26]} {[%emt 00:00:10]} Bxb2 {[%clk 00:10:09]} {[%emt 00:00:48]} 20. Rb5
{[%clk 00:14:00]} {[%emt 00:00:31]} 1/2-1/2